bitfinex-derivatives/quotes_SOLF0:USTF0_20251108
["timestamp","ask_amount","ask_price","bid_price","bid_amount"]
[1762623015285,2.40243083,157.09,157.06,3.04]
[1762623015485,2.40243083,157.09,157.06,8.96091853]
[1762623016185,2.40243083,157.09,157.06,3.04]
[1762623016779,8.13363083,157.09,157.06,3.04]
[1762623016982,2.36,157.08,157.05,5.96226392]
[1762623017187,2.36,157.08,157.05,0.04134539]
[1762623017382,2.36,157.08,157.05,3.08134539]
[1762623017681,2.36,157.08,157.05,0.04134539]
[1762623017881,2.36,157.06,157.05,0.04134539]
[1762623018181,2.40243083,157.09,157.05,3.08134539]
[1762623018575,0.04243083,157.09,157.07,3.04]
[1762623018981,2.40243083,157.09,157.07,3.04]
[1762623019180,2.40243083,157.09,157.06,3.04]
[1762623019682,2.40243083,157.09,157.05,3.08134539]
[1762623020481,8.0916,157.08,157.05,3.08134539]
[1762623020681,2.36,157.07,157.05,0.04134539]
[1762623021889,8.092,157.07,157.05,0.04134539]
[1762623022188,2.36,157.06,157.05,0.04134539]
[1762623023694,5.732,157.07,157.05,0.04134539]
[1762623023695,8.092,157.07,157.05,0.04134539]
[1762623023887,8.092,157.07,157.05,3.08134539]
[1762623024085,2.36,157.07,157.05,3.08134539]
[1762623024588,8.0919,157.07,157.05,0.04134539]
[1762623024792,2.36,157.06,157.05,0.04134539]
[1762623027289,0.04243083,157.09,157.05,3.08134539]
[1762623027586,2.40243083,157.09,157.05,0.04134539]
[1762623027785,5.7316,157.08,157.05,0.04134539]
[1762623027988,2.36,157.07,157.05,0.04134539]
[1762623028995,2.36,157.06,157.05,0.04134539]
[1762623030090,2.36,157.08,157.05,3.08134539]
[1762623031107,8.13373083,157.09,157.05,3.08134539]
[1762623031396,2.37,157.08,157.05,3.08134539]
[1762623031998,0.04243083,157.09,157.06,9.03091853]
[1762623032395,0.04243083,157.09,157.07,3.11]
[1762623036997,2.41243083,157.09,157.07,3.11]
[1762623037299,2.41243083,157.09,157.05,5.96226392]
[1762623037485,2.37,157.08,157.05,0.04134539]
[1762623037897,2.37,157.08,157.05,3.15134539]
[1762623038297,2.41243083,157.09,157.06,3.11]
[1762623040395,2.37,157.08,157.05,0.04134539]
[1762623040602,2.37,157.08,157.05,3.15134539]
[1762623042604,0.04243083,157.09,157.06,3.11]
[1762623044007,0.04243083,157.09,157.06,8.8422]
[1762623044305,0.04243083,157.09,157.07,2.94]
[1762623044806,0.04243083,157.09,157.07,8.6719]
[1762623045102,0.04243083,157.09,157.08,2.94]
[1762623045602,0.04243083,157.09,157.08,8.86314609]
[1762623045804,0.04243083,157.09,157.08,2.94]
[1762623046604,0.04243083,157.09,157.06,5.92314609]
[1762623046605,2.41243083,157.09,157.06,2.94]
[1762623047397,0.04243083,157.09,157.06,2.94]
[1762623047602,0.04243083,157.09,157.07,8.86314609]
[1762623047801,0.04243083,157.09,157.08,2.94]
[1762623048708,0.04243083,157.09,157.08,8.86314609]
[1762623051003,0.04243083,157.09,157.08,2.94]
[1762623060608,0.04243083,157.09,157.08,8.86314609]
[1762623061811,0.04243083,157.09,157.08,2.94]
[1762623065608,0.04243083,157.09,157.08,5.32751611]
[1762623066715,2.37,157.15,157.11,2.97]
[1762623067611,11.49427,157.17,157.12,2.97]
[1762623067612,2.37,157.16,157.12,2.97]
[1762623067814,2.41221532,157.16,157.12,3.01796672]
[1762623068217,0.04221532,157.16,157.12,3.01796672]
[1762623068606,2.41221532,157.16,157.12,3.01796672]
[1762623068814,2.37,157.15,157.12,3.01796672]
[1762623069208,5.7294,157.14,157.12,3.01796672]
[1762623069509,2.37,157.15,157.12,3.01796672]
[1762623069812,2.37,157.14,157.12,0.04796672]
[1762623070015,2.37,157.12,157.06,11.2806622]
[1762623070317,17.44095827,157.17,157.06,11.2806622]
[1762623070318,2.37,157.1,157.06,2.97]
[1762623070515,4.75751611,157.09,157.06,2.97]
[1762623071012,4.80382183,157.09,157.06,3.01563875]
[1762623071515,2.37,157.08,157.06,0.04563875]
[1762623072918,8.1016,157.08,157.06,0.04563875]
[1762623073113,2.37,157.06,157.01,5.67852245]
[1762623073306,2.37,157.03,157.0,5.67852245]
[1762623073908,2.38751611,157.04,157.01,2.97]
[1762623074112,0.0438629,157.04,157.01,3.01042214]
[1762623075114,0.0438629,157.04,157.03,2.97]
[1762623077211,0.0438629,157.04,157.01,3.01042214]
[1762623081925,2.4138629,157.04,157.01,0.04042214]
[1762623082423,2.37,157.02,157.01,0.04042214]
[1762623083825,2.37,156.99,156.95,2.97]
[1762623084719,2.4187163,156.99,156.95,3.01426964]
[1762623084926,2.37,156.98,156.95,0.04426964]
[1762623085320,8.1056,156.97,156.95,0.04426964]
[1762623085727,2.37,156.96,156.95,0.04426964]
[1762623091933,4.76751611,156.98,156.95,0.04426964]
[1762623092133,2.38,156.97,156.95,0.04426964]
[1762623092932,8.1157,156.97,156.95,0.04426964]
[1762623093232,2.38,156.96,156.95,0.04426964]
[1762623094342,2.38,156.97,156.95,0.04426964]
[1762623094937,0.0487163,156.99,156.95,8.77046964]
[1762623095141,0.0487163,156.99,156.95,3.03426964]
[1762623095441,0.0487163,156.99,156.98,2.99]
[1762623101056,5.7329,157.05,157.01,2.99]
[1762623101554,8.1129,157.05,157.01,2.99]
[1762623102055,8.15630326,157.05,157.01,3.03089236]
[1762623102452,2.38,157.04,157.01,3.03089236]
[1762623105960,0.04340326,157.05,157.01,3.03089236]
[1762623106959,2.42340326,157.05,157.02,3.0]
[1762623109961,0.04340326,157.05,157.02,8.7335]
[1762623110170,0.04340326,157.05,157.02,3.0]
[1762623110557,0.04340326,157.05,157.04,3.0]
[1762623122277,2.38,157.12,157.07,2.98]
[1762623123359,0.04080671,157.11,157.08,8.75210461]
[1762623123560,0.04080671,157.11,157.09,2.98]
[1762623124369,2.40080671,157.11,157.08,0.04060461]
[1762623125466,2.40080671,157.11,157.08,3.02060461]
[1762623126081,0.04080671,157.11,157.08,3.02060461]
[1762623127075,0.04080671,157.11,157.08,8.75210461]
[1762623127277,0.04080671,157.11,157.09,2.98]
[1762623135377,0.04080671,157.11,157.1,2.98]
[1762623140573,11.49427,157.17,157.15,2.98]
[1762623141085,11.49427,157.17,157.16,2.98]
[1762623141473,11.49427,157.17,157.15,0.04872221]
[1762623141673,13.89427,157.17,157.14,0.04854716]
[1762623141881,13.89427,157.17,157.14,3.02854716]
[1762623142271,2.4,157.16,157.14,0.04854716]
[1762623143488,66.12,157.15,157.03,2.98]
[1762623143784,6.13324252,157.12,157.03,2.98]
[1762623143975,11.86344252,157.12,157.06,2.98]
[1762623144581,0.04676238,157.11,157.08,2.98]
[1762623145189,2.44676238,157.11,157.07,0.04262415]
[1762623145384,2.44676238,157.11,157.07,3.02262415]
[1762623146586,2.4,157.08,157.07,0.04262415]
[1762623148289,0.04676238,157.11,157.07,3.02262415]
[1762623151483,0.04676238,157.11,157.1,3.02]
[1762623152383,0.04676238,157.11,157.07,5.77422415]
[1762623152583,0.04676238,157.11,157.08,3.02]
[1762623153196,0.04676238,157.11,157.09,3.02]
[1762623154795,0.04676238,157.11,157.1,3.02]
[1762623160703,19.63277,157.17,157.13,3.02]
[1762623160704,2.46,157.16,157.13,3.02]
[1762623160895,2.46,157.16,157.09,3.02]
[1762623161090,11.49427,157.17,157.09,3.02]
[1762623161401,11.49427,157.17,157.15,3.02]
[1762623170006,11.49427,157.17,157.16,3.0]
[1762623172712,2.46,157.23,157.18,3.0]
[1762623173610,2.46,157.23,157.19,5.7274]
[1762623173914,2.50109974,157.23,157.2,3.0]
[1762623178917,0.04109974,157.23,157.2,3.0]
[1762623179114,0.04109974,157.23,157.2,8.727]
[1762623179316,0.04109974,157.23,157.21,3.0]
[1762623179913,2.50109974,157.23,157.21,3.0]
[1762623180114,2.50109974,157.23,157.2,5.727]
[1762623180315,2.50109974,157.23,157.2,8.727]
[1762623181314,2.45,157.21,157.19,0.04103931]
[1762623181814,4.83523945,157.22,157.19,3.27103931]
[1762623183323,4.83523945,157.2,157.19,0.04103931]
[1762623185621,2.38523945,157.2,157.19,3.27103931]
[1762623187322,2.38523945,157.2,157.19,0.04103931]
[1762623188020,4.83523945,157.22,157.19,3.27103931]
[1762623188212,2.45,157.21,157.19,0.04103931]
[1762623188410,2.38523945,157.22,157.19,3.27103931]
[1762623188718,0.04109974,157.23,157.19,3.27103931]
[1762623190023,0.04109974,157.23,157.21,8.9567]
[1762623191125,0.04109974,157.23,157.22,3.23]
[1762623195332,2.49109974,157.23,157.2,3.23]
[1762623195526,2.49109974,157.23,157.19,8.99833931]
[1762623195724,2.45,157.22,157.19,0.04103931]
[1762623196028,2.45,157.22,157.19,3.27103931]
[1762623196528,2.42633919,157.23,157.19,3.27103931]
[1762623196726,4.87633919,157.23,157.2,3.23]
[1762623196928,2.42633919,157.23,157.2,3.23]
[1762623197722,2.42633919,157.23,157.21,3.23]
[1762623198227,2.42633919,157.23,157.22,3.23]
[1762623198228,0.04109974,157.23,157.22,3.23]
[1762623200534,0.04109974,157.23,157.21,5.7267]
[1762623200833,0.04109974,157.23,157.22,3.23]
[1762623203140,0.04109974,157.23,157.19,5.76843931]
[1762623203329,2.49109974,157.23,157.2,3.23]
[1762623203936,0.04109974,157.23,157.21,3.23]
[1762623204629,2.49109974,157.23,157.19,0.04103931]
[1762623204829,2.45,157.21,157.19,0.04103931]
[1762623205037,4.83523945,157.2,157.19,0.04103931]
[1762623206044,2.49109974,157.23,157.19,3.27103931]
[1762623206236,4.87633919,157.23,157.19,3.27103931]
[1762623206437,0.04109974,157.23,157.19,3.27103931]
[1762623208049,0.04109974,157.23,157.22,3.23]
[1762623214546,0.04109974,157.23,157.22,9.11877525]
[1762623216451,6.29311,157.3,157.23,3.14]
[1762623216452,8.67834945,157.3,157.23,3.14]
[1762623216756,8.67834945,157.3,157.25,3.14]
[1762623217153,8.67834945,157.3,157.27,8.8645]
[1762623217351,8.71935552,157.3,157.27,8.91318856]
[1762623218855,2.45,157.29,157.27,5.77318856]
[1762623219048,4.83523945,157.28,157.27,0.04868856]
[1762623219250,2.45,157.29,157.27,3.18868856]
[1762623219450,2.45,157.29,157.27,0.04868856]
[1762623220157,2.45,157.29,157.27,5.77318856]
[1762623222457,2.45,157.29,157.27,0.04868856]
[1762623222756,4.83523945,157.28,157.27,0.04868856]
[1762623228360,2.45,157.28,157.27,0.04868856]
[1762623234664,2.50100607,157.3,157.27,0.04868856]
[1762623235373,2.46,157.28,157.27,0.04868856]
[1762623240263,0.04100607,157.3,157.27,0.04868856]
[1762623240568,2.46,157.29,157.27,0.04868856]
[1762623242563,2.44,157.28,157.27,0.04868856]
[1762623243355,5.76450607,157.3,157.27,0.04868856]
[1762623243562,2.44,157.29,157.27,0.04868856]
[1762623244674,0.04100607,157.3,157.28,3.04]
[1762623245870,2.48100607,157.3,157.28,3.04]
[1762623246074,2.48100607,157.3,157.27,8.81318856]
[1762623246373,2.48100607,157.3,157.27,3.08868856]
[1762623248066,2.48100607,157.3,157.27,8.81318856]
[1762623251080,0.04100607,157.3,157.28,8.7641]
[1762623251374,0.04100607,157.3,157.29,3.04]
[1762623263495,0.04100607,157.3,157.29,8.92803258]
[1762623264592,0.04100607,157.3,157.29,3.04]
[1762623267803,2.48100607,157.3,157.27,8.97672114]
[1762623268003,2.48100607,157.3,157.27,3.08868856]
[1762623268898,8.20450607,157.3,157.27,3.08868856]
[1762623269607,0.04100607,157.3,157.27,3.08868856]
[1762623269801,0.04100607,157.3,157.27,8.97672114]
[1762623270004,0.04100607,157.3,157.28,3.04]
[1762623272004,0.04100607,157.3,157.28,8.7642]
[1762623272504,2.50100607,157.3,157.28,3.04]
[1762623272713,0.04100607,157.3,157.28,3.04]
[1762623273807,0.04100607,157.3,157.29,3.11]
[1762623277016,0.04100607,157.3,157.29,8.8339]
[1762623279412,0.04100607,157.3,157.29,14.72193258]
[1762623279609,0.04100607,157.3,157.29,8.8339]
[1762623280113,5.93364404,157.39,157.32,3.11]
[1762623280114,2.5,157.38,157.32,3.11]
[1762623280317,2.5,157.41,157.32,8.99803258]
[1762623280517,2.5,157.41,157.35,3.11]
[1762623280716,3.72216087,157.42,157.38,3.11]
[1762623280910,6.22216087,157.42,157.38,3.11]
[1762623281112,6.22216087,157.42,157.38,3.154961]
[1762623281307,2.5,157.42,157.39,3.11]
[1762623281513,9.44036087,157.45,157.39,3.11]
[1762623281514,11.94036087,157.45,157.39,3.11]
[1762623281819,2.5,157.44,157.39,3.11]
[1762623282018,2.5,157.42,157.38,0.044961]
[1762623282708,6.22216087,157.42,157.38,0.044961]
[1762623282911,2.5,157.39,157.38,0.044961]
[1762623284712,5.7199,157.4,157.38,3.094961]
[1762623284914,2.49,157.39,157.38,0.044961]
[1762623289313,3.72216087,157.42,157.38,3.094961]
[1762623289514,2.49,157.44,157.39,3.05]
[1762623290317,4.86830941,157.42,157.39,3.05]
[1762623290518,4.86830941,157.42,157.39,3.09796922]
[1762623291327,2.49,157.45,157.39,3.09796922]
[1762623291518,2.37830941,157.44,157.39,3.09796922]
[1762623292329,4.86830941,157.45,157.4,3.05]
[1762623292826,2.49,157.44,157.4,3.05]
[1762623294224,2.49,157.44,157.41,3.05]
[1762623294525,4.86830941,157.46,157.41,3.05]
[1762623295529,2.49,157.45,157.41,3.05]
[1762623295730,147.31,157.48,157.41,8.7693]
[1762623295930,2.49,157.45,157.43,0.04462179]
[1762623296229,2.49,157.45,157.43,3.09462179]
[1762623297028,10.58610941,157.46,157.43,3.09462179]
[1762623297930,8.2078,157.46,157.43,3.09462179]
[1762623298129,144.82,157.48,157.43,3.09462179]
[1762623298130,150.5372,157.48,157.43,3.09462179]
[1762623298330,2.49,157.47,157.43,3.09462179]
[1762623298523,2.37830941,157.46,157.43,3.09462179]
[1762623299229,4.86830941,157.46,157.43,3.09462179]
[1762623299632,4.86830941,157.47,157.43,3.09462179]
[1762623300131,2.49,157.47,157.43,3.09462179]
[1762623300427,4.86830941,157.47,157.43,3.09462179]
[1762623300618,10.58580941,157.47,157.43,3.09462179]
[1762623301419,4.86830941,157.45,157.43,0.04462179]
[1762623301625,2.37830941,157.45,157.43,3.26462179]
[1762623304522,2.49,157.47,157.43,0.04462179]
[1762623304733,2.37830941,157.45,157.43,3.26462179]
[1762623306127,4.86830941,157.45,157.43,0.04462179]
[1762623306439,2.49,157.44,157.43,0.04462179]
[1762623306643,2.49,157.44,157.37,3.22]
[1762623306935,4.86830941,157.42,157.37,3.22]
[1762623307728,0.0425046,157.41,157.39,3.22]
[1762623308133,2.5325046,157.41,157.38,3.26497173]
[1762623308435,0.0425046,157.41,157.38,3.26497173]
[1762623308934,4.91081401,157.41,157.38,3.26497173]
[1762623309533,10.63041401,157.41,157.38,3.26497173]
[1762623311739,8.14041401,157.41,157.38,3.26497173]
[1762623312538,10.63041401,157.41,157.38,3.26497173]
[1762623314033,2.49,157.4,157.38,3.26497173]
[1762623315536,8.14041401,157.41,157.38,3.26497173]
[1762623315743,10.63041401,157.41,157.38,3.26497173]
[1762623320035,2.49,157.38,157.3,9.10803258]
[1762623320345,4.86830941,157.35,157.31,3.22]
[1762623320747,2.49,157.32,157.29,9.10803258]
[1762623320946,2.49,157.32,157.29,3.22]
[1762623321147,2.53236116,157.32,157.29,3.26312887]
[1762623321342,4.91067057,157.32,157.29,3.26312887]
[1762623322646,0.04236116,157.32,157.29,3.26312887]
[1762623322842,2.53236116,157.32,157.29,3.26312887]
[1762623324450,2.49,157.3,157.29,0.04312887]
[1762623324748,4.86830941,157.31,157.29,0.04312887]
[1762623324943,2.49,157.3,157.29,0.04312887]
[1762623327250,5.76536116,157.32,157.29,3.26312887]
[1762623327251,0.04236116,157.32,157.29,3.26312887]
[1762623327649,0.04236116,157.32,157.31,3.22]
[1762623331653,0.04236116,157.32,157.31,9.10803258]
[1762623333056,0.04236116,157.32,157.31,3.22]
[1762623333248,0.04236116,157.32,157.31,9.10803258]
[1762623334564,2.37830941,157.39,157.32,2.98]
[1762623334860,2.54,157.44,157.38,2.98]
[1762623335157,2.54,157.42,157.36,8.86803258]
[1762623335359,2.54,157.42,157.36,2.98]
[1762623335550,2.54,157.4,157.37,0.04119086]
[1762623335756,2.58374229,157.4,157.37,3.02188507]
[1762623336949,2.58374229,157.4,157.37,0.04188507]
[1762623338149,2.37830941,157.39,157.37,0.04188507]
[1762623338349,2.54,157.38,157.37,0.04188507]
[1762623338954,4.91830941,157.38,157.37,0.04188507]
[1762623339862,6.19830941,157.38,157.37,0.04188507]
[1762623340156,2.54,157.37,157.29,2.98]
[1762623340458,2.54,157.33,157.29,2.98]
[1762623341055,2.58880648,157.33,157.29,3.02591086]
[1762623345867,2.58880648,157.33,157.29,8.74961086]
[1762623347061,2.54,157.31,157.29,0.04591086]
[1762623347261,4.91830941,157.3,157.29,0.04591086]
[1762623348167,2.54,157.3,157.29,0.04591086]
[1762623355773,2.54,157.28,157.24,8.9256]
[1762623356073,2.54,157.28,157.25,3.2]
[1762623356673,2.58287429,157.28,157.25,3.24616517]
[1762623359579,2.58287429,157.28,157.25,0.04616517]
[1762623360980,2.54,157.26,157.25,0.04616517]
[1762623361674,2.54,157.27,157.25,0.04616517]
[1762623362673,2.54,157.27,157.25,3.04616517]
[1762623364574,2.54,157.27,157.25,0.04616517]
[1762623369382,8.2646,157.27,157.25,0.04616517]
[1762623369976,2.54,157.27,157.25,0.04616517]
[1762623372184,8.2647,157.27,157.25,0.04616517]
[1762623372879,2.54,157.26,157.25,0.04616517]
[1762623373084,2.54,157.24,157.2,10.6475]
[1762623373981,2.58175845,157.24,157.21,3.0]
[1762623376289,2.54,157.23,157.21,3.0]
[1762623381590,2.54,157.23,157.2,10.68923592]
[1762623383796,2.54,157.22,157.2,7.68923592]
[1762623384585,2.54,157.23,157.21,3.0]
[1762623384788,0.04175845,157.24,157.21,3.0]
[1762623385985,2.58175845,157.24,157.22,3.0]
[1762623387587,2.58175845,157.24,157.2,7.68923592]
[1762623387588,2.54,157.23,157.2,7.68923592]
[1762623387992,2.54,157.21,157.2,7.68923592]
[1762623389293,2.54,157.19,157.13,14.59215363]
[1762623389592,2.54,157.19,157.14,3.0]
[1762623390185,0.04446393,157.18,157.15,0.04888393]
[1762623390381,2.54,157.17,157.15,0.04888393]
[1762623391994,2.55,157.16,157.15,0.04888393]
[1762623402101,2.55,157.15,157.07,3.08]
[1762623403001,2.55,157.12,157.09,0.04776329]
[1762623403900,2.55,157.11,157.09,0.04776329]
[1762623414708,2.55,157.1,157.09,0.04776329]
[1762623417107,2.55,157.12,157.09,0.04776329]
[1762623420104,2.59661767,157.13,157.1,3.12]
[1762623420312,0.04661767,157.13,157.1,3.12]
[1762623420912,2.38731145,157.21,157.12,3.12]
[1762623421104,2.55,157.21,157.12,3.12]
[1762623421305,8.277,157.21,157.15,5.7289]
[1762623421514,2.54,157.2,157.16,3.12]
[1762623421922,2.54,157.19,157.16,3.16085619]
[1762623422510,2.54,157.18,157.16,3.16085619]
[1762623422911,2.54,157.18,157.16,0.04085619]
[1762623435521,2.54,157.18,157.16,3.16085619]
[1762623435727,0.04273086,157.2,157.16,3.16085619]
[1762623436221,0.04273086,157.2,157.18,3.12]
[1762623438625,2.58273086,157.2,157.18,3.12]
[1762623439227,0.04273086,157.2,157.18,3.12]
[1762623442329,0.04273086,157.2,157.18,8.8478]
[1762623442819,0.04273086,157.2,157.19,3.12]
[1762623446826,4.92731145,157.27,157.22,3.12]
[1762623447425,4.92731145,157.27,157.24,3.12]
[1762623447823,0.04331293,157.27,157.24,8.89004083]
[1762623448024,0.04331293,157.27,157.25,3.12]
[1762623453935,5.76801293,157.27,157.25,3.12]
[1762623455141,8.2652,157.26,157.24,0.04444083]
[1762623455338,4.92731145,157.25,157.24,0.04444083]
[1762623456339,2.38731145,157.25,157.24,3.02444083]
[1762623457443,4.92731145,157.25,157.24,0.04444083]
[1762623458445,2.54,157.25,157.24,0.04444083]
[1762623461841,8.11231145,157.26,157.24,0.04444083]
[1762623462044,2.38731145,157.26,157.24,3.02444083]
[1762623464539,2.58331293,157.27,157.24,3.02444083]
[1762623468147,292.85368126,157.47,157.25,3.07]
[1762623468148,2.54,157.34,157.25,3.07]
[1762623468337,2.38731145,157.34,157.28,3.07]
[1762623469150,0.04617036,157.33,157.3,3.07]
[1762623469950,0.04617036,157.33,157.3,8.7933]
[1762623470249,0.04617036,157.33,157.31,3.07]
[1762623472247,2.54,157.32,157.29,3.11480101]
[1762623472653,2.58617036,157.33,157.3,3.07]
[1762623473445,0.04617036,157.33,157.3,3.07]
[1762623474950,2.54,157.32,157.29,3.11480101]
[1762623475150,2.54,157.32,157.29,0.04480101]
[1762623475455,2.54,157.29,157.2,3.07]
[1762623475855,8.2644,157.28,157.22,8.7963]
[1762623476347,2.58221727,157.27,157.23,3.11669657]
[1762623480756,2.54,157.26,157.23,0.04669657]
[1762623481352,2.53,157.24,157.23,0.04669657]
[1762623482253,6.24977552,157.24,157.23,0.04669657]
[1762623482460,2.53,157.23,157.19,3.05]
[1762623483550,2.57330967,157.23,157.19,3.09735515]
[1762623483854,8.2565,157.22,157.19,3.09735515]
[1762623484049,2.53,157.21,157.19,0.04735515]
[1762623484458,2.53,157.2,157.19,0.04735515]
[1762623486167,3.71977552,157.21,157.19,3.09735515]
[1762623486460,6.24977552,157.21,157.19,0.04735515]
[1762623487258,2.53,157.2,157.19,0.04735515]
[1762623488865,5.7266,157.22,157.19,0.04735515]
[1762623489060,8.2566,157.22,157.19,0.04735515]
[1762623489256,2.53,157.21,157.19,0.04735515]
[1762623489961,2.57330967,157.23,157.19,3.09735515]
[1762623494564,2.53,157.22,157.19,3.09735515]
[1762623494760,2.53,157.22,157.19,0.04735515]
[1762623495768,2.53,157.2,157.19,0.04735515]
[1762623499367,2.53,157.17,157.13,3.05]
[1762623499566,2.53,157.17,157.08,3.05]
[1762623500165,2.53,157.14,157.11,3.05]
[1762623501075,2.57203606,157.14,157.11,3.09206607]
[1762623501273,0.04203606,157.14,157.11,3.09206607]
[1762623501479,0.04203606,157.14,157.12,3.05]
[1762623501977,0.04203606,157.14,157.12,8.78]
[1762623502171,0.04203606,157.14,157.13,3.05]
[1762623503875,5.7269,157.21,157.14,3.05]
[1762623504082,2.53,157.23,157.16,3.05]
[1762623504782,8.2965,157.22,157.19,3.05]
[1762623505275,2.57,157.21,157.19,0.04295872]
[1762623506779,0.04031943,157.22,157.19,3.09295872]
[1762623507081,0.04031943,157.22,157.2,3.05]
[1762623507473,0.04031943,157.22,157.2,8.777]
[1762623507675,0.04031943,157.22,157.21,3.05]
[1762623509570,0.04031943,157.22,157.19,0.04295872]
[1762623509571,2.61031943,157.22,157.19,0.04295872]
[1762623509876,2.61031943,157.22,157.19,3.09295872]
[1762623511583,0.04031943,157.22,157.21,3.01]
[1762623515192,2.58,157.28,157.24,3.01]
[1762623515693,67.05977552,157.3,157.24,3.01]
[1762623515889,67.05977552,157.3,157.26,3.01]
[1762623516097,63.34,157.3,157.26,3.01]
[1762623516291,0.04675769,157.3,157.26,3.05198344]
[1762623516492,2.62675769,157.3,157.26,3.05198344]
[1762623517185,2.58,157.29,157.26,3.05198344]
[1762623517793,5.77035769,157.3,157.26,3.05198344]
[1762623517794,2.58,157.28,157.26,0.04198344]
[1762623518700,8.3043,157.28,157.26,0.04198344]
[1762623518893,2.58,157.27,157.22,3.01]
[1762623519090,6.29977552,157.26,157.22,3.01]
[1762623519901,6.34460668,157.26,157.22,3.05776422]
[1762623520089,12.06980668,157.26,157.22,3.05776422]
[1762623520396,2.58,157.25,157.22,3.05776422]
[1762623527596,8.3054,157.25,157.22,3.05776422]
[1762623527906,2.58,157.24,157.22,0.04776422]
[1762623529107,2.58,157.23,157.22,0.04776422]
[1762623532203,2.58,157.2,157.15,2.96]
[1762623533005,8.3073,157.2,157.17,2.96]
[1762623533203,8.3494473,157.2,157.17,3.00229016]
[1762623533702,2.6221473,157.2,157.17,3.00229016]
[1762623535607,2.58,157.19,157.17,0.04229016]
[1762623536403,4.96535239,157.19,157.17,0.04229016]
[1762623536603,2.58,157.18,157.17,0.04229016]
[1762623539005,5.7275,157.19,157.17,0.04229016]
[1762623539214,0.0421473,157.2,157.17,3.00229016]
[1762623539711,2.6221473,157.2,157.17,3.00229016]
[1762623541013,8.3493473,157.2,157.17,3.00229016]
[1762623542507,5.7693473,157.2,157.17,3.00229016]
[1762623542807,0.0421473,157.2,157.17,8.73049016]
[1762623543005,2.58,157.18,157.17,0.04229016]
[1762623543208,2.58,157.18,157.11,8.99916985]
[1762623543409,2.38535239,157.19,157.12,3.13]
[1762623543609,5.7272,157.2,157.15,5.7288]
[1762623543814,8.3072,157.2,157.16,3.13]
[1762623544214,8.35244847,157.2,157.16,3.17291277]
[1762623549317,0.04524847,157.2,157.17,3.13]
[1762623550012,0.04524847,157.2,157.18,8.8578]
[1762623550918,0.04524847,157.2,157.19,3.13]
[1762623557124,8.3052,157.26,157.22,3.13]
[1762623557421,2.58,157.26,157.22,3.13]
[1762623557820,69.0445,157.28,157.23,3.13]
[1762623557821,71.6245,157.28,157.23,3.13]
[1762623558121,2.62677087,157.27,157.24,3.17886743]
[1762623559823,0.04677087,157.27,157.24,3.17886743]
[1762623560123,2.62677087,157.27,157.24,3.17886743]
[1762623562027,0.04677087,157.27,157.25,3.13]
[1762623564330,0.04677087,157.27,157.26,3.13]
[1762623566931,7.6475,157.31,157.28,3.13]
[1762623567833,7.69654236,157.31,157.28,3.17720394]
[1762623568032,7.69654236,157.31,157.29,8.8537]
[1762623568232,7.69654236,157.31,157.3,3.13]
[1762623568531,10.27654236,157.31,157.28,3.17720394]
[1762623569130,10.27654236,157.31,157.28,8.90130394]
[1762623571023,2.58,157.3,157.28,0.04720394]
[1762623571228,2.58,157.29,157.28,0.04720394]
[1762623571933,2.58,157.29,157.2,2.38535239]
[1762623571934,2.58,157.29,157.22,2.92]
[1762623572124,2.38535239,157.27,157.22,2.92]
[1762623572832,0.04173132,157.26,157.24,2.92]
[1762623573038,0.04173132,157.26,157.24,8.6456]
[1762623574734,2.62173132,157.26,157.23,0.04076052]
[1762623574939,2.62173132,157.26,157.23,2.96076052]
[1762623576036,8.34673132,157.26,157.23,2.96076052]
[1762623580242,10.69075239,157.25,157.23,0.04076052]
[1762623580541,2.58,157.24,157.23,0.04076052]
[1762623583844,4.96535239,157.24,157.23,0.04076052]